[Event "57th Biel Festival MTO 2024"]
[White "Haimovich,Tal"]
[Black "Sethuraman,S.P."]
[Site "Biel"]
[Round "4.13"]
[Annotator "TA"]
[Result "1/2-1/2"]
[Date "2024.07.18"]
[WhiteElo "2330"]
[BlackElo "2587"]
[PlyCount "140"]
[TimeControl "60"]

{[%evp 54,140,0,14,3,4,15,14,0,5,42,6,42,12,12,12,27,25,12,20,23,20,21,0,7,0,0,0,0,0,0,0,0,0,0,0,0,0,0,0,0,0,0,0,6,0,48,40,39,0,0,0,8,0,0,0,0,0,0,0,0,0,0,0,0,0,0,0,0,0,0,0,0,0,0,0,0,0,18,8,8,0,8,0,0,0,12,0,8]} 1. d4 {[%emt 0:0:3]} Nf6 {[%emt 0:1:21]} 2. Nf3 {[%emt 0:0:11]} e6 {[%emt 0:1:25]} 3. c4 {[%emt 0:0:10]} h6 {[%emt 0:0:50]} 4. g3 {[%emt 0:2:23]} d5 {[%emt 0:0:21]} 5. Bg2 {[%emt 0:0:12]} Bb4+ {[%emt 0:0:35]} 6. Bd2 {[%emt 0:0:41] E10: Blumenfeld Gambit.} Be7 {[%emt 0:1:6]} 7. O-O {[%emt 0:0:19]} Nbd7 {[%emt 0:0:2]} 8. Qc2 {[%emt 0:0:58]} c6 {[%emt 0:0:7]} 9. Rd1 {[%emt 0:1:56]} O-O {[%emt 0:8:34]} 10. b3 {[%emt 0:4:12]} b6 {[%emt 0:5:30]} 11. Bc3 {[%emt 0:9:11]} Ne4 {[%emt 0:21:22]} 12. Bb2 {[%emt 0:1:58]} Bb7 $146 {[%emt 0:0:5]} ({Predecessor:} 12... Ba6 13. Nbd2 Nxd2 14. Nxd2 f5 15. Qc1 Rc8 16. Ba3 Bb7 17. Bxe7 Qxe7 18. Qb2 f4 {0-1 Lugovskoy,D (1972)-Sokolova,V (2088) Peterhof op 08 2009 (6)} )13. Ne5 {[%emt 0:10:57]} Nxe5 {[%emt 0:0:39]} 14. Bxe4 {[%emt 0:1:7]} Nd7 {[%emt 0:4:2]} 15. Bg2 {[%emt 0:0:42]} f5 {[%emt 0:0:7]} 16. e3 {[%emt 0:12:49]} Bd6 {[%emt 0:0:7]} 17. Ba3 {[%emt 0:0:48]} Bxa3 {[%emt 0:1:18]} 18. Nxa3 {[%emt 0:0:8]} Qe7 {[%emt 0:0:9]} 19. Qb2 {[%emt 0:1:2]} a5 {[%emt 0:0:30]} 20. Nc2 {[%emt 0:1:1]} g5 {[%emt 0:19:18]} 21. Ne1 {[%emt 0:4:50]} Kg7 {[%emt 0:2:21]} 22. Nd3 {[%emt 0:3:40]} h5 {[%emt 0:0:35]} 23. Rac1 {[%emt 0:0:54]} Rh8 {[%emt 0:4:20]} 24. b4 {[%emt 0:6:16]} axb4 {[%emt 0:1:11]} 25. Qxb4 {[%emt 0:0:53]} Kf6 {[%emt 0:6:12]} 26. Qb2 {[%emt 0:6:33]} Qa3 {[%emt 0:7:18]} 27. Qxa3 {[%emt 0:9:9]} Rxa3 {[%emt 0:0:53]} 28. cxd5 {[%emt 0:0:4]} exd5 {[%emt 0:0:7]} 29. Rc2 {[%emt 0:0:52]} Ke6 {[%emt 0:7:30]} 30. h4 {[%emt 0:4:10]} g4 {[%emt 0:4:48]} 31. Bf1 {[%emt 0:10:49]} Kd6 $1 {[%emt 0:0:42]} 32. Rb1 {[%emt 0:1:50]} b5 {[%emt 0:2:58]} 33. Nb4 {[%emt 0:5:34]} Nb6 {[%emt 0:0:37]} 34. Rb3 {[%emt 0:2:9]} Ra7 {[%emt 0:1:28]} 35. Bd3 {[%emt 0:0:23]} Rf8 {[%emt 0:0:13]} 36. Re2 {[%emt 0:3:10]} Nc4 {[%emt 0:0:55]} 37. Bb1 {[%emt 0:0:8]} Bc8 {[%emt 0:5:55]} 38. Nd3 {[%emt 0:0:36]} Bd7 {[%emt 0:0:30]} 39. Nc5 {[%emt 0:4:0]} Na3 {[%emt 0:2:55]} 40. Bd3 {[%emt 0:1:37]} Be6 {[%emt 0:0:3]} 41. Rb4 {[%emt 0:9:15]} Rfa8 {[%emt 0:2:37]} 42. Kf1 {[%emt 0:5:43]} Ke7 {[%emt 0:13:5]} 43. Ke1 {[%emt 0:10:55]} Kf6 {[%emt 0:1:56]} 44. Kd1 {[%emt 0:2:5]} Bf7 {[%emt 0:1:14]} 45. Kc1 {[%emt 0:0:40]} Bg6 {[%emt 0:1:14]} 46. Kb2 {[%emt 0:6:44]} Re7 {[%emt 0:3:56]} 47. Rb3 {[%emt 0:0:54]} Nc4+ {[%emt 0:2:46]} 48. Bxc4 {[%emt 0:2:24]} dxc4 {[%emt 0:0:4]} 49. Ra3 $1 {[%emt 0:0:18]} c3+ {[%emt 0:7:50]} (49... Ree8 $11 {is more appropriate.} )50. Rxc3 $14 {[%emt 0:1:18]} (50. Kxc3 $2 {loses.} Rxa3+ 51. Kb2 Rea7 $19 )b4 $1 {[%emt 0:0:5]} 51. Rc1 {[%emt 0:1:45]} (51. Rb3 $5 Bf7 52. a4 Bxb3 53. Kxb3 $16 )Rea7 {[%emt 0:1:26]} 52. Ra1 {[%emt 0:4:32]} Bf7 {[%emt 0:1:13]} 53. Kc1 {[%emt 0:0:19]} Ra3 {[%emt 0:1:17]} 54. Rb1 {[%emt 0:4:55]} Rxa2 {[%emt 0:7:12]} ({But not} 54... Bxa2 $6 55. Rxb4 Bd5 56. Reb2 $16 )55. Rxa2 {[%emt 0:0:29]} Rxa2 {[%emt 0:0:4]} 56. Rb2 {[%emt 0:0:4]} Ra1+ {[%emt 0:0:3]} 57. Rb1 {[%emt 0:2:8]} Ra2 {[%emt 0:0:5]} 58. Rb2 {[%emt 0:0:19]} Ra1+ {[%emt 0:0:5]} 59. Kd2 {[%emt 0:2:47]} Rf1 {[%emt 0:5:12]} 60. Kd3 {[%emt 0:0:7]} Bd5 {[%emt 0:1:16]} 61. Na6 {[%emt 0:18:0]} Rd1+ {[%emt 0:20:30]} 62. Kc2 {[%emt 0:0:53]} Rf1 {[%emt 0:0:4]} 63. Kd3 {[%emt 0:0:23]} b3 {[%emt 0:0:44]} 64. Nb4 {[%emt 0:0:0]} Rd1+ {[%emt 0:0:0]} 65. Kc3 $1 {[%emt 0:0:0]} Bf7 {[%emt 0:0:0]} 66. Nd3 {[%emt 0:0:0]} Bd5 {[%emt 0:0:0]} 67. Nc5 {[%emt 0:0:0]} Rc1+ {[%emt 0:0:0]} 68. Kd2 {[%emt 0:0:0]} Rf1 {[%emt 0:0:0]} 69. Kc3 {[%emt 0:0:0]} Rc1+ {[%emt 0:0:0]} 70. Kd2 {[%emt 0:0:0]} Rf1 {[%emt 0:0:0]} 1/2-1/2

[Event "57th Biel Festival MTO 2024"]
[White "Gavrilescu,David"]
[Black "Emmenecker,Pierre-Antoine"]
[Site "Biel"]
[Round "4.14"]
[Annotator "TA"]
[Result "1-0"]
[Date "2024.07.18"]
[WhiteElo "2538"]
[BlackElo "2306"]
[PlyCount "51"]
[TimeControl "60"]

{[%evp 9,51,41,36,38,51,29,51,29,31,30,47,-2,-3,-17,-7,-4,14,-2,-15,-6,-9,-18,-12,-36,-37,-31,30,41,36,45,64,68,157,127,152,142,142,131,204,225,597,601,640,631]} 1. e4 {[%emt 0:0:3]} e5 {[%emt 0:2:30]} 2. Nf3 {[%emt 0:0:56]} Nc6 {[%emt 0:0:9]} 3. Bc4 {[%emt 0:0:43]} Nf6 {[%emt 0:0:8]} 4. d3 {[%emt 0:0:26]} h6 {[%emt 0:0:13]} 5. c3 {[%emt 0:0:36]} d6 {[%emt 0:0:12]} 6. a4 {[%emt 0:0:47][%cal Ba2a4,Ba4a5,Ba5a6][%mdl 32]} g6 {[%emt 0:0:16]} 7. a5 {[%emt 0:3:44]} Bg7 {[%emt 0:0:26]} 8. a6 {[%emt 0:1:58] [#] Threatens to win with axb7. White is slightly better.} b6 {[%emt 0:0:52]} 9. O-O {[%emt 0:1:25]} (9. Bb5 $5 Bd7 $8 10. b4 $11 )O-O {[%emt 0:2:37]} 10. Nbd2 {[%emt 0:3:14]} (10. Re1 $14 {was preferrable.} )Rb8 $11 {[%emt 0:8:48]} 11. Bb5 {[%emt 0:11:57]} Ne7 {[%emt 0:8:42]} 12. d4 {[%emt 0:2:6]} c6 {[%emt 0:13:34]} 13. Bd3 {[%emt 0:1:28]} exd4 {[%emt 0:12:56]} 14. cxd4 {[%emt 0:5:24]} c5 {[%emt 0:6:45]} 15. Re1 {[%emt 0:28:7]} Nc6 {[%emt 0:6:51]} 16. Bb5 {[%emt 0:1:31]} Bd7 {[%emt 0:15:15]} 17. Nc4 {[%emt 0:5:46]} Nxd4 {[%emt 0:1:37]} ({Better is} 17... d5 $15 18. exd5 Nxd5 )18. Nxd4 {[%emt 0:0:10]} cxd4 {[%emt 0:0:16]} 19. Nxd6 {[%emt 0:1:44]} Ne8 {[%emt 0:7:10]} 20. Nb7 $36 {[%emt 0:14:49][%mdl 2048] White is more active. White has more active pieces.} Rxb7 {[%emt 0:16:33]} ({Black should try} 20... Qe7 $1 $14 21. Bf1 Bc6 )21. axb7 $16 {[%emt 0:0:25]} Bxb5 {[%emt 0:0:6]} 22. Bf4 {[%emt 0:4:8] Dodges Qb8} Nd6 {[%emt 0:0:12]} 23. Rxa7 {[%emt 0:0:7] aiming for Ra8.} Qb8 {[%emt 0:3:43] [#]} (23... Nxb7 $16 24. Rxb7 d3 )24. Qa1 $1 $18 {[%emt 0:0:45][%mdl 1024] Black must now prevent Qa3. White has strong compensation.} d3 $2 {[%emt 0:1:22]} (24... g5 {is a better chance.} 25. Bg3 Re8 26. Bxd6 Qxd6 )25. Qa3 {[%emt 0:1:9]} d2 {[%emt 0:1:4]} 26. Rd1 {[%emt 0:0:6] Weighted Error Value: White=0.08 (flawless) /Black=0.57.  Mistake:       	White=1     	Black=4      OK:         	White=6     	Black=10     Best:        	White=2     	Black=1      Strong:       	White=1     	---} (26. Bxd6 $2 dxe1=Q# )1-0

[Event "57th Biel Festival MTO 2024"]
[White "Cervantes Landeiro,Thalia"]
[Black "Bilguun,Sumiya"]
[Site "Biel"]
[Round "4.15"]
[Annotator "RC"]
[Result "1/2-1/2"]
[Date "2024.07.18"]
[WhiteElo "2271"]
[BlackElo "2466"]
[PlyCount "81"]
[TimeControl "60"]

1. d4 {[%emt 0:4:56]} Nf6 {[%emt 0:5:27]} 2. c4 {[%emt 0:0:0]} e6 {[%emt 0:0:18]} 3. Nf3 {[%emt 0:0:0]} b6 {[%emt 0:0:18]} 4. g3 {[%emt 0:0:0]} Bb7 {[%emt 0:0:9]} 5. Bg2 {[%emt 0:0:0]} Be7 {[%emt 0:0:11]} 6. O-O {[%emt 0:0:0]} O-O {[%emt 0:0:22]} 7. Re1 {[%emt 0:0:0]} c5 {[%emt 0:0:16]} 8. d5 {[%emt 0:3:49]} exd5 {[%emt 0:0:52]} 9. Nh4 {[%emt 0:1:59]} Ne4 {[%emt 0:5:40]} 10. cxd5 {[%emt 0:2:32]} Bxh4 {[%emt 0:0:15]} 11. Bxe4 {[%emt 0:0:20]} Bf6 {[%emt 0:0:17]} 12. Nc3 {[%emt 0:3:47]} d6 {[%emt 0:1:19]} 13. Bg2 {[%emt 0:7:13]} a6 {[%emt 0:0:33]} 14. a4 {[%emt 0:1:35]} Nd7 {[%emt 0:2:17]} 15. Bf4 {[%emt 0:5:47]} Re8 {[%emt 0:39:2]} 16. Ne4 {[%emt 0:7:12]} Be5 {[%emt 0:4:0]} 17. Bxe5 {[%emt 0:12:3]} Nxe5 {[%emt 0:0:31]} 18. Nc3 {[%emt 0:6:2]} c4 {[%emt 0:24:5]} 19. Qd4 {[%emt 0:2:44]} Rc8 {[%emt 0:2:56]} 20. Bh3 {[%emt 0:8:34]} Rc5 {[%emt 0:9:50]} 21. f4 {[%emt 0:4:35]} Ng6 {[%emt 0:2:17]} 22. e4 {[%emt 0:1:48]} Qc7 {[%emt 0:3:49]} 23. Bg2 {[%emt 0:4:1]} f6 {[%emt 0:2:41]} 24. h4 {[%emt 0:3:55]} Nf8 {[%emt 0:2:59]} 25. Qd1 {[%emt 0:3:43]} b5 {[%emt 0:0:34]} 26. e5 {[%emt 0:8:13]} dxe5 {[%emt 0:1:18]} 27. Ne4 {[%emt 0:1:32]} Bxd5 {[%emt 0:0:35]} 28. Nxc5 {[%emt 0:4:14]} Qxc5+ {[%emt 0:0:1]} 29. Kh2 {[%emt 0:0:6]} Bxg2 {[%emt 0:0:19]} 30. Kxg2 {[%emt 0:0:13]} e4 {[%emt 0:0:45]} 31. axb5 {[%emt 0:1:34]} axb5 {[%emt 0:0:4]} 32. Ra6 {[%emt 0:3:21]} h6 {[%emt 0:1:41]} 33. Qd6 {[%emt 0:2:0]} Qf5 {[%emt 0:0:19]} 34. Qc6 {[%emt 0:5:23]} Rd8 {[%emt 0:0:8]} 35. Qxe4 {[%emt 0:4:3]} Rd2+ {[%emt 0:0:10]} 36. Kg1 {[%emt 0:0:9]} Qg4 {[%emt 0:1:25]} 37. Ra3 {[%emt 0:0:44]} Qh3 {[%emt 0:0:39]} 38. Re2 {[%emt 0:0:20]} Rd1+ {[%emt 0:0:17]} 39. Re1 {[%emt 0:0:12]} Rd2 {[%emt 0:0:13]} 40. Re2 {[%emt 0:0:10]} Rd1+ {[%emt 0:0:51]} 41. Re1 {[%emt 0:50:40]} 1/2-1/2

[Event "57th Biel Festival MTO 2024"]
[White "Ansat,Aldiyar"]
[Black "Gloeckler,Christian"]
[Site "Biel"]
[Round "4.16"]
[Annotator "TA"]
[Result "1/2-1/2"]
[Date "2024.07.18"]
[WhiteElo "2437"]
[BlackElo "2304"]
[PlyCount "108"]
[TimeControl "60"]

{[%evp 9,108,36,33,37,41,24,13,18,27,12,13,-10,-8,0,45,29,22,34,44,35,37,17,27,0,20,-19,0,0,21,-19,-4,-144,-143,-138,-160,-192,-196,-197,-82,-75,-75,-105,-105,-186,-46,-144,-148,-143,-120,-162,-154,-153,-151,-145,-146,-165,-160,-290,-168,-164,-150,-146,-64,-66,-62,-59,-52,-79,-50,-57,-53,-100,-19,-20,-4,-5,0,0,0,0,8,12,9,13,27,0,0,0,2,3,6,0,0,0,0,0,0,0,0,0,0]} 1. e4 {[%emt 0:3:21]} c5 {[%emt 0:0:13]} 2. Nf3 {[%emt 0:0:8]} Nc6 {[%emt 0:0:33]} 3. Nc3 {[%emt 0:10:9]} e5 {[%emt 0:0:38]} 4. Bc4 {[%emt 0:0:7]} g6 {[%emt 0:0:18]} 5. d3 {[%emt 0:1:39]} h6 $1 {[%emt 0:0:8]} 6. Be3 {[%emt 0:2:53]} d6 {[%emt 0:2:0]} 7. Qd2 {[%emt 0:19:30]} Bg7 {[%emt 0:6:44]} 8. Nd5 {[%emt 0:4:14]} Nge7 {[%emt 0:10:11]} 9. c3 {[%emt 0:1:12]} f5 {[%emt 0:17:38]} 10. exf5 {[%emt 0:6:6]} Nxd5 {[%emt 0:3:4]} (10... gxf5 {simplifies} 11. g3 Nxd5 12. Bxd5 Ne7 )11. Bxd5 {[%emt 0:0:23]} Ne7 {[%emt 0:4:52] [#]} 12. f6 $1 {[%emt 0:8:52]} Bxf6 {[%emt 0:0:59]} 13. Bb3 {[%emt 0:0:6]} Nf5 {[%emt 0:7:23]} 14. O-O {[%emt 0:9:19]} Kf8 {[%emt 0:5:28]} 15. Qc2 {[%emt 0:9:17][%cal Od3d4]} Kg7 {[%emt 0:3:43]} 16. Rad1 {[%emt 0:9:6]} Re8 {[%emt 0:4:19]} 17. Rfe1 {[%emt 0:3:1]} Bd7 {[%emt 0:8:6]} 18. Bd5 {[%emt 0:1:3]} Qc7 {[%emt 0:9:35]} 19. Qd2 {[%emt 0:2:45]} Bc6 {[%emt 0:8:4]} 20. Be4 {[%emt 0:0:22]} (20. Bxc6 $1 $11 Qxc6 21. Qc2 )Nxe3 $1 $17 {[%emt 0:0:36]} 21. Bxc6 {[%emt 0:0:50]} Nxg2 {[%emt 0:0:58]} ({Stronger than} 21... Qxc6 22. Rxe3 d5 23. Qc2 $14 )22. Bxb7 {[%emt 0:3:21]} Qxb7 {[%emt 0:4:5]} 23. Kxg2 {[%emt 0:0:1]} Bg5 {[%emt 0:0:28]} (23... c4 $1 $19 {[%cal Rc4d3] is more deadly. Strongly threatening ...cxd3.} 24. Qc2 (24. dxc4 $2 {perishes.} e4 $19 )cxd3 )24. Qe2 {[%emt 0:0:32]} Bf4 {[%emt 0:1:17]} 25. Kg1 {[%emt 0:4:42]} Rf8 {[%emt 0:3:20]} 26. d4 {[%emt 0:3:56]} (26. Nd2 $17 {might work better.} )exd4 {[%emt 0:2:21]} (26... cxd4 $19 27. Nh4 (27. cxd4 $2 {too greedy.} Rae8 $19 )Bg5 )27. Qe7+ {[%emt 0:1:6] [#]} ({White should try} 27. cxd4 $15 Rae8 28. Qd3 )Qxe7 $1 {[%emt 0:1:22]} 28. Rxe7+ {[%emt 0:0:1]} Kf6 {[%emt 0:0:59]} 29. Re4 {[%emt 0:2:11]} Kf5 {[%emt 0:0:26]} 30. Re7 {[%emt 0:0:13]} dxc3 {[%emt 0:1:5]} 31. bxc3 {[%emt 0:0:6]} g5 {[%emt 0:0:57]} 32. h3 {[%emt 0:1:52]} Rfe8 {[%emt 0:0:46]} 33. Rde1 {[%emt 0:0:41] [#]} (33. Rf7+ $17 Ke6 34. Rh7 )Be5 $1 {[%emt 0:0:47][%mdl 512]} 34. Rf7+ $19 {[%emt 0:0:56]} Kg6 {[%emt 0:0:33]} 35. Rd7 {[%emt 0:0:7]} Bxc3 {[%emt 0:0:56]} (35... Bf4 $17 36. Rd1 Rf8 )36. Rxd6+ {[%emt 0:0:6]} Bf6 {[%emt 0:0:29]} 37. Rc1 {[%emt 0:2:1]} Rac8 {[%emt 0:0:37]} 38. Rc4 {[%emt 0:0:5]} Red8 {[%emt 0:1:1]} 39. Ra6 {[%emt 0:0:43]} Rc7 {[%emt 0:0:35]} 40. Rca4 {[%emt 0:2:1]} (40. Ne5+ $15 Kg7 41. Nc6 )Re8 {[%emt 0:1:39]} (40... Kf5 $17 {White must now prevent ...c4.} 41. Rc4 Bg7 )41. Nd2 $11 {[%emt 0:13:59][%cal Od2e4]} Rce7 {[%emt 0:7:31]} 42. Rc6 {[%emt 0:1:29]} Re5 {[%emt 0:5:40]} 43. Raa6 {[%emt 0:6:54]} Rf5 {[%emt 0:1:5]} 44. f3 {[%emt 0:0:11][%cal Od2e4]} Kg7 {[%emt 0:7:28]} 45. Ne4 {[%emt 0:2:50][%cal Re4f6]} Bd4+ {[%emt 0:3:4]} 46. Kg2 {[%emt 0:0:17]} Rb8 {[%emt 0:3:45]} 47. Rxa7+ {[%emt 0:6:21]} Kf8 {[%emt 0:2:39] The position is equal.} 48. Rxh6 {[%emt 0:6:23]} c4 {[%emt 0:2:15]} 49. Ra3 {[%emt 0:2:48]} Be5 {[%emt 0:1:30]} 50. Rh7 {[%emt 0:0:56]} Kg8 {[%emt 0:2:52]} 51. Rd7 {[%emt 0:2:55]} c3 {[%emt 0:4:1]} 52. Nxc3 {[%emt 0:2:6]} Rb2+ {[%emt 0:0:19]} 53. Kg1 {[%emt 0:0:3]} Bh2+ {[%emt 0:0:47]} 54. Kh1 {[%emt 0:0:17]} Rxf3 {[%emt 0:0:56] Whites escaped into a draw.   Weighted Error Value: White=0.21 (precise) /Black=0.18 (very precise) .  Mistake:       	White=5     	Black=5      Inaccurate:     	White=5     	Black=2      OK:         	White=19    	Black=17     Best:        	White=3     	Black=3      Strong:       	---       	Black=2} 1/2-1/2

[Event "57th Biel Festival MTO 2024"]
[White "Materia,Marco"]
[Black "Saravanan,V.."]
[Site "Biel"]
[Round "4.17"]
[Annotator "TA"]
[Result "1-0"]
[Date "2024.07.18"]
[WhiteElo "2453"]
[BlackElo "2266"]
[PlyCount "67"]
[TimeControl "60"]

{[%evp 19,67,3,4,4,7,0,45,0,32,25,48,37,47,55,50,39,47,41,40,33,46,8,26,8,39,40,37,0,0,0,0,0,0,0,114,112,106,106,209,212,379,310,413,230,459,464,464,464,464,463]} 1. d4 {[%emt 0:0:1]} d5 {[%emt 0:0:9]} 2. c4 {[%emt 0:0:4]} dxc4 {[%emt 0:0:6]} 3. Nf3 {[%emt 0:0:3]} Nf6 {[%emt 0:0:8]} 4. e3 {[%emt 0:0:3]} e6 {[%emt 0:0:13]} 5. Bxc4 {[%emt 0:0:4]} c5 {[%emt 0:0:6]} 6. O-O {[%emt 0:0:6]} a6 {[%emt 0:0:5]} 7. a4 {[%emt 0:1:9]} Nc6 {[%emt 0:0:8]} 8. Qe2 {[%emt 0:0:8]} Qc7 {[%emt 0:1:45]} 9. Nc3 {[%emt 0:11:2]} Be7 {[%emt 0:0:10]} 10. dxc5 {[%emt 0:2:8]} Bxc5 {[%emt 0:0:5]} 11. Bd3 {[%emt 0:5:3]} (11. e4 {scheint wilder zu sein.} Ng4 12. g3 O-O 13. Kg2 )O-O {[%emt 0:2:21]} 12. Ne4 {[%emt 0:3:10]} Be7 {[%emt 0:5:35]} 13. Bd2 {[%emt 0:1:51] Weiß steht etwas besser.} e5 {[%emt 0:10:38]} 14. Rac1 {[%emt 0:9:38][%cal Ob2b4]} Bg4 {[%emt 0:6:28][%cal Bc8g4,Bg4h5,Bh5g6][%mdl 32]} 15. h3 {[%emt 0:5:26]} Bh5 {[%emt 0:2:5]} 16. Nxf6+ {[%emt 0:5:41]} Bxf6 {[%emt 0:0:11]} 17. Be4 {[%emt 0:2:12]} Bg6 {[%emt 0:4:58]} 18. Bxc6 {[%emt 0:10:43]} bxc6 {[%emt 0:0:58]} 19. e4 {[%emt 0:0:47]} Rfd8 {[%emt 0:4:50]} 20. b4 {[%emt 0:7:3]} Qd7 {[%emt 0:2:22]} 21. Rfe1 {[%emt 0:3:12]} Qd3 {[%emt 0:1:25]} (21... Be7 $5 )22. Qxd3 {[%emt 0:7:38]} Rxd3 {[%emt 0:0:7]} 23. Rxc6 {[%emt 0:0:3]} Be7 {[%emt 0:3:8]} 24. b5 {[%emt 0:14:58]} (24. Nxe5 $2 {ist das falsche Schlagen.} Rxd2 25. Rc4 Bd6 26. Nxg6 hxg6 $19 )axb5 {[%emt 0:0:6]} 25. axb5 {[%emt 0:0:1][%cal Ob5b6]} f6 {[%emt 0:0:9]} 26. b6 {[%emt 0:2:50] b7 ist eine echte Drohung.} Rb3 {[%emt 0:3:47] [#]} (26... Bd8 $11 )27. Be3 $1 $16 {[%emt 0:3:25]} ({Viel schlechter ist} 27. Rc7 $6 Bd8 $11 )Bxe4 {[%emt 0:6:23]} 28. Rc7 {[%emt 0:2:12]} Bxf3 {[%emt 0:7:50]} (28... Bd6 $16 {kämpft weiter.} )29. Rxe7 $18 {[%emt 0:4:49]} Bd5 {[%emt 0:0:6]} (29... Be4 30. Rc1 Kh8 )30. Rd1 {[%emt 0:1:13]} Rb5 {[%emt 0:0:20]} 31. Rc7 {[%emt 0:1:38]} (31. Rc1 $142 )Be6 $2 {[%emt 0:9:55] [#]} (31... h5 32. Rxd5 Ra1+ 33. Kh2 Rxd5 )32. Rd6 {[%emt 0:2:53] Weiß steht klar auf Gewinn.} Bf5 {[%emt 0:5:17]} 33. b7 {[%emt 0:0:13]} Rb8 {[%emt 0:1:9]} 34. Rb6 {[%emt 0:0:8] Gewichteter Fehlerwert: Weiß=0.18 (sehr präzise) /Schwarz=0.45.  Fehler:       	Weiß=1     	Schwarz=4     Ungenau:       	Weiß=3     	Schwarz=3     OK:         	Weiß=9     	Schwarz=7     Bester:       	Weiß=1     	---        Stark:        	Weiß=1     	---} ({Weniger gut wäre} 34. g4 R5xb7 35. Rxb7 Rxb7 36. gxf5 h6 $18 )1-0

[Event "57th Biel Festival MTO 2024"]
[White "Holzke,Frank"]
[Black "Shoshin,Kirill"]
[Site "Biel"]
[Round "4.18"]
[Annotator "TA"]
[Result "1-0"]
[Date "2024.07.18"]
[WhiteElo "2450"]
[BlackElo "2277"]
[PlyCount "71"]
[TimeControl "60"]

{[%evp 10,71,7,4,26,13,12,23,83,38,42,8,30,33,35,0,0,0,0,-54,0,0,5,-25,-29,-29,-22,-13,0,0,69,0,64,0,83,70,100,29,45,43,66,57,158,171,171,173,177,177,158,98,106,71,174,81,114,68,546,460,806,788,883,780,1363,1183]} 1. e4 {[%emt 0:5:54]} c5 {[%emt 0:2:7]} 2. Nf3 {[%emt 0:0:22]} Nc6 {[%emt 0:0:7]} 3. Bb5 {[%emt 0:0:17]} g6 {[%emt 0:0:9]} 4. O-O {[%emt 0:0:33]} Bg7 {[%emt 0:0:6]} 5. d3 {[%emt 0:0:27]} Nf6 {[%emt 0:2:3]} 6. Nc3 {[%emt 0:0:34]} Nd4 {[%emt 0:0:51]} 7. e5 {[%emt 0:8:12]} Ng4 {[%emt 0:0:11]} 8. Re1 {[%emt 0:2:15] Strongly threatening Nxd4.} a6 {[%emt 0:37:37]} (8... O-O $11 )9. Bc4 {[%emt 0:4:11]} O-O {[%emt 0:0:5]} (9... Nxf3+ 10. Qxf3 O-O (10... Nxe5 $2 11. Rxe5 e6 12. Rxc5 $18 )11. Qxg4 $16 )10. Bf4 {[%emt 0:1:54]} (10. Nxd4 {simplifies} cxd4 11. Qxg4 dxc3 12. Qg3 )d6 {[%emt 0:2:46]} 11. exd6 $1 {[%emt 0:7:51]} exd6 {[%emt 0:2:29]} 12. a4 {[%emt 0:7:52]} Be6 {[%emt 0:10:3]} 13. Ng5 {[%emt 0:17:25][%cal Rg5e6]} Ne5 {[%emt 0:14:2]} 14. Nd5 {[%emt 0:7:21]} (14. Bxe5 $11 Bxe5 15. Nxe6 fxe6 16. Rxe5 dxe5 17. a5 )h6 {[%emt 0:2:32]} (14... Nxc4 $15 15. dxc4 Bxd5 16. cxd5 Qf6 )15. Ne4 $11 {[%emt 0:1:17]} f5 {[%emt 0:4:41] And now ...Nxc4 would win.} 16. Ng3 {[%emt 0:3:48]} (16. Nd2 {simplifies} Bf7 17. c3 Ndc6 18. Bxe5 dxe5 19. Ne3 )g5 {[%emt 0:5:43]} 17. Bd2 {[%emt 0:1:52]} f4 {[%emt 0:7:16]} (17... Nxc4 {simplifies} 18. dxc4 f4 19. Ne4 Bxd5 20. cxd5 f3 )18. Nh5 {[%emt 0:0:38]} f3 {[%emt 0:0:52] White must now prevent ...fxg2.} 19. c3 $1 {[%emt 0:4:13]} Nf5 {[%emt 0:0:1]} ({Black should play} 19... Ne2+ $11 20. Rxe2 fxe2 21. Qxe2 Kh8 22. Nxg7 Kxg7 )20. d4 {[%emt 0:4:32]} (20. gxf3 Nh4 21. f4 Nef3+ 22. Kh1 Bh3 $19 (22... Nxe1 23. Qxe1 Bh3 24. fxg5 $15 ))(20. g4 $1 $14 Nh4 21. d4 Nxc4 22. Rxe6 )cxd4 {[%emt 0:0:41]} (20... Nxc4 $11 21. Rxe6 Qd7 )21. cxd4 {[%emt 0:0:13]} (21. g4 $1 $14 Ne3 (21... Nxc4 $2 {is the wrong capture.} 22. Rxe6 Nh4 23. h3 $18 )22. Bxe3 (22. fxe3 $2 {perishes.} f2+ 23. Kg2 fxe1=N+ 24. Qxe1 Nxc4 $19 )dxe3 23. Nxe3 (23. Rxe3 Rc8 $14 )Nxc4 24. Nxg7 Kxg7 (24... Nxe3 25. Rxe3 Bxg4 26. Ne6 $16 )25. Nxc4 )Nxd4 {[%emt 0:6:48]} (21... Nxc4 $11 22. Rxe6 Qd7 )22. Bc3 $1 $16 {[%emt 0:8:52] Some like it hot} Ne2+ {[%emt 0:3:38]} 23. Rxe2 {[%emt 0:2:46]} ({Better is} 23. Bxe2 $16 fxe2 24. Rxe2 )fxe2 $11 {[%emt 0:0:6]} 24. Qxe2 {[%emt 0:0:22] Qe4 would now be deadly.} Rc8 {[%emt 0:1:25]} 25. Nxg7 {[%emt 0:4:40]} (25. Ba2 {seems wilder.} Rxc3 26. bxc3 Qd7 27. Ne3 )Bxd5 {[%emt 0:1:43]} (25... Kxg7 $14 26. Rd1 (26. Bxe5+ dxe5 27. Qxe5+ Kf7 $11 )Rc6 )26. Bxd5+ $16 {[%emt 0:0:15] This pair of bishops is nice.} Kxg7 {[%emt 0:0:3]} 27. Bxb7 {[%emt 0:0:31]} Rxc3 {[%emt 0:3:17]} 28. bxc3 {[%emt 0:0:13]} a5 {[%emt 0:0:6]} 29. Qe3 {[%emt 0:2:37]} (29. Bd5 $142 )Qc7 {[%emt 0:0:19]} 30. Bd5 {[%emt 0:0:50]} Rb8 {[%emt 0:0:18] Inhibits Rb1.} (30... Qc5 $16 {was called for.} 31. Qd2 Ng4 )31. Re1 {[%emt 0:1:51]} (31. Qd2 $18 )Rb2 {[%emt 0:0:13] [#]} 32. h4 {[%emt 0:2:17]} ({White should try} 32. Rf1 $1 $16 {[%mdl 512]} )gxh4 $2 {[%emt 0:0:55][%mdl 8192] [#] This move loses the game for Black.} (32... Qb6 $1 $14 )33. c4 $1 {[%emt 0:0:19][%mdl 512] White is clearly winning.} Rc2 {[%emt 0:3:8]} (33... Rb8 $142 34. Qd4 (34. c5 Re8 $18 )Qb6 35. Qxh4 Qd8 )(33... Qb6 34. c5 )34. Rb1 {[%emt 0:2:27]} Ra2 {[%emt 0:0:35]} 35. Qf4 {[%emt 0:2:6] Threatens to win with Rb7.} Kg6 {[%emt 0:0:31]} 36. Be4+ {[%emt 0:0:32] Weighted Error Value: White=0.28 (precise) /Black=0.49.  Loses game:     	---       	Black=1      Mistake:       	White=7     	Black=8      Inaccurate:     	White=5     	Black=1      OK:         	White=3     	Black=4      Best:        	White=1     	Black=3      Strong:       	White=3     	---} 1-0